bitfinex/quotes_BTCUSD_20250515
["timestamp","ask_amount","ask_price","bid_price","bid_amount"]
[1747321396801,0.20584504,102090.0,102080.0,0.84945675]
[1747321397245,0.20584504,102090.0,102080.0,0.8396609]
[1747321397465,0.21563983,102090.0,102080.0,0.95656191]
[1747321397667,0.02952944,102090.0,102080.0,0.96635747]
[1747321398005,0.22543501,102090.0,102080.0,0.53746625]
[1747321398214,0.19604996,102090.0,102060.0,0.64386315]
[1747321398430,0.02939043,102070.0,102060.0,1.0813678]
[1747321398654,0.43957806,102070.0,102060.0,0.22464]
[1747321398882,0.47897806,102070.0,102060.0,0.22464]
[1747321399727,0.47897806,102070.0,102060.0,0.42060315]
[1747321399930,0.21555879,102060.0,102050.0,1.03836147]
[1747321400055,0.20576121,102060.0,102050.0,0.7452294]
[1747321400274,0.21555898,102060.0,102050.0,0.9608097]
[1747321400475,0.22535713,102060.0,102050.0,0.97060833]
[1747321401493,0.22535713,102060.0,102050.0,0.98040687]
[1747321401714,0.22635713,102060.0,102050.0,0.98040687]
[1747321402203,0.22635713,102060.0,102050.0,0.96080989]
[1747321402453,0.21655936,102060.0,102050.0,0.97060872]
[1747321402675,0.21655936,102060.0,102050.0,0.98040735]
[1747321402909,0.02159621,102060.0,102050.0,0.99020579]
[1747321403143,0.002,102060.0,102050.0,0.99020579]
[1747321403352,0.23715441,102060.0,102050.0,0.99020579]
[1747321403879,0.01179748,102060.0,102050.0,1.08751519]
[1747321404104,0.002,102060.0,102050.0,1.10681519]
[1747321404332,0.002,102060.0,102050.0,1.59173133]
[1747321404531,0.002,102060.0,102050.0,1.93173133]
[1747321404969,0.002,102060.0,102050.0,2.02418793]
[1747321405835,0.002,102060.0,102050.0,1.94627218]
[1747321406046,0.001,102060.0,102050.0,1.94627218]
[1747321406250,0.00979633,102070.0,102060.0,0.24465646]
[1747321406460,0.00979633,102070.0,102060.0,0.43927526]
[1747321406710,0.25322803,102080.0,102070.0,0.22533439]
[1747321406901,0.45894902,102080.0,102070.0,0.22533439]
[1747321407616,0.25322803,102080.0,102070.0,0.22533439]
[1747321407855,0.25318735,102080.0,102070.0,0.32264379]
[1747321408063,0.02938726,102080.0,102070.0,0.41995319]
[1747321408280,0.2629433,102080.0,102070.0,0.41995319]
[1747321408481,0.4686642,102080.0,102070.0,0.41995319]
[1747321408683,0.46866487,102080.0,102070.0,0.41995338]
[1747321408895,0.45886912,102080.0,102070.0,0.41995338]
[1747321409098,0.25314813,102080.0,102070.0,0.4297499]
[1747321409273,0.45407289,102080.0,102070.0,0.4297499]
[1747321409777,0.26794436,102080.0,102070.0,0.4297499]
[1747321410193,0.25810813,102080.0,102070.0,0.4297499]
[1747321410411,0.23851566,102080.0,102070.0,0.4297499]
[1747321410572,0.26790273,102080.0,102070.0,0.4297499]
[1747321410778,0.23851537,102080.0,102070.0,0.4693499]
[1747321410981,0.005,102080.0,102070.0,1.69950689]
[1747321411563,0.005,102080.0,102070.0,2.03950689]
[1747321412129,0.002,102080.0,102070.0,2.08950689]
[1747321412283,0.002,102080.0,102070.0,2.09150689]
[1747321412801,0.002,102080.0,102070.0,2.08950689]
[1747321413034,0.00014439,102090.0,102080.0,0.60321231]
[1747321413234,0.00014439,102090.0,102080.0,1.89700725]
[1747321413645,0.00014439,102090.0,102080.0,1.9115481]
[1747321414525,0.00014439,102090.0,102080.0,2.37786424]
[1747321414728,0.00014439,102090.0,102080.0,2.37986424]
[1747321415110,0.00014439,102090.0,102080.0,1.9135481]
[1747321415316,0.00014439,102090.0,102080.0,1.9155481]
[1747321415730,0.00014439,102090.0,102080.0,2.38186424]
[1747321416861,0.01005102,102100.0,102090.0,0.57983109]
[1747321417067,0.015405,102120.0,102110.0,0.61988696]
[1747321417272,0.015405,102120.0,102110.0,1.83094114]
[1747321417682,0.015405,102120.0,102110.0,2.17094114]
[1747321418251,0.015405,102120.0,102110.0,1.704625]
[1747321418460,0.015405,102120.0,102110.0,2.17394114]
[1747321418659,0.015405,102120.0,102110.0,2.27125054]
[1747321419423,0.015405,102120.0,102110.0,2.27425054]
[1747321420863,0.015405,102120.0,102110.0,1.5843744]
[1747321421070,0.015405,102120.0,102110.0,1.77878491]
[1747321421274,0.015405,102120.0,102110.0,2.12391997]
[1747321421602,0.02519672,102120.0,102110.0,1.51516491]
[1747321421736,0.02519663,102120.0,102110.0,1.32938491]
[1747321421946,0.015405,102120.0,102110.0,1.38826082]
[1747321422152,0.015405,102120.0,102110.0,1.40264427]
[1747321423154,0.015405,102120.0,102110.0,2.15707933]
[1747321424322,0.015405,102120.0,102110.0,2.84777933]
[1747321425628,0.015405,102120.0,102110.0,2.62314987]
[1747321425860,6e-05,102130.0,102120.0,0.26442405]
[1747321426177,0.00054121,102130.0,102120.0,1.73032417]
[1747321426713,0.00054121,102130.0,102120.0,1.26468351]
[1747321427689,0.00054121,102130.0,102120.0,2.36668351]
[1747321428997,0.00054121,102130.0,102120.0,3.41030502]
[1747321429822,0.00054121,102130.0,102120.0,3.40930502]
[1747321430179,0.00054121,102130.0,102120.0,3.41230502]
[1747321430298,0.00054121,102130.0,102120.0,3.41730502]
[1747321433436,0.00054121,102130.0,102120.0,2.72822436]
[1747321433679,0.00054121,102130.0,102120.0,3.17458436]
[1747321433889,0.00054121,102130.0,102120.0,3.17454436]
[1747321434692,0.00054121,102130.0,102120.0,3.64018502]
[1747321435037,0.00054121,102130.0,102120.0,3.17454436]
[1747321436266,0.00054121,102130.0,102120.0,3.64018502]
[1747321437895,0.00054121,102130.0,102120.0,2.7089037]
[1747321438100,0.00054121,102130.0,102120.0,3.64018502]
[1747321438559,0.0402,102170.0,102160.0,0.22513587]
[1747321438761,0.04034438,102170.0,102160.0,1.05929803]
[1747321439933,0.00014438,102170.0,102160.0,1.05929803]
[1747321440490,0.00014438,102170.0,102160.0,1.52493869]
[1747321440908,0.00014438,102170.0,102160.0,1.05929803]
[1747321441297,0.03884438,102170.0,102160.0,1.05929803]
[1747321441499,0.03884438,102170.0,102160.0,0.83589803]
[1747321441755,0.27619196,102170.0,102160.0,0.94241256]
[1747321441979,0.07799278,102170.0,102160.0,0.97177671]
[1747321442227,0.08043984,102170.0,102160.0,0.97177671]
[1747321442449,0.28597961,102170.0,102160.0,0.95220083]
[1747321442674,0.08778029,102170.0,102160.0,0.9717768]
[1747321442894,0.09022821,102170.0,102160.0,0.9717769]
[1747321443100,0.0706531,102170.0,102160.0,0.98156479]
[1747321443357,0.27619278,102170.0,102160.0,0.96198891]
[1747321443567,0.27374629,102170.0,102160.0,0.96198891]
[1747321443749,0.26395907,102170.0,102160.0,0.93262409]
[1747321443983,0.26395907,102170.0,102160.0,0.95220073]
[1747321444185,0.24438415,102170.0,102160.0,0.73605276]
[1747321444719,0.24438415,102170.0,102160.0,0.94161256]
[1747321444893,0.24438415,102170.0,102160.0,0.94161265]
[1747321445092,0.24438415,102170.0,102160.0,0.95140112]
[1747321445455,0.24438415,102170.0,102160.0,0.94161265]
[1747321445659,0.02936741,102150.0,102140.0,0.19577634]
[1747321445862,0.47622906,102150.0,102140.0,0.43795701]
[1747321446257,0.48601858,102150.0,102140.0,0.44774701]
[1747321446453,0.48601858,102150.0,102140.0,0.42816682]
[1747321446656,0.47627778,102150.0,102140.0,0.2226]
[1747321447135,0.47627778,102150.0,102140.0,0.2246]
[1747321447315,0.57358718,102150.0,102140.0,0.2246]
[1747321447536,0.35102718,102150.0,102140.0,0.2246]
[1747321447712,0.46640002,102150.0,102140.0,0.51548097]
[1747321447870,0.46640002,102150.0,102140.0,0.50569068]
[1747321448071,0.46640002,102150.0,102140.0,0.52527097]
[1747321448072,0.4566105,102150.0,102140.0,0.52527097]
[1747321448388,0.4859782,102150.0,102140.0,0.51548097]
[1747321448587,0.47618925,102150.0,102140.0,0.50469068]
[1747321448790,0.47554657,102150.0,102140.0,0.2226]
[1747321448988,0.57385597,102150.0,102140.0,0.2226]
[1747321449211,0.20560015,102140.0,102130.0,0.4228]
[1747321449416,0.20560015,102140.0,102130.0,0.6454]
[1747321449417,0.2530467,102140.0,102130.0,0.6454]
[1747321449868,0.2530467,102140.0,102130.0,0.84122884]
[1747321450113,0.2530467,102140.0,102130.0,0.6454]
[1747321450346,0.28950664,102140.0,102130.0,0.95864356]
[1747321450544,0.26095607,102140.0,102130.0,0.95864356]
[1747321450751,0.01893636,102140.0,102130.0,0.95964356]
[1747321450929,0.00914655,102140.0,102130.0,1.05695296]
[1747321451180,0.23158655,102140.0,102130.0,1.40208298]
[1747321451601,0.23158655,102140.0,102130.0,1.42168298]
[1747321451805,0.23158655,102140.0,102130.0,1.40208298]
[1747321452206,0.23158655,102140.0,102130.0,1.05695296]
[1747321452595,0.00914655,102140.0,102130.0,1.40208298]
[1747321452802,0.00914655,102140.0,102130.0,2.20582383]
[1747321453037,0.46795821,102170.0,102160.0,0.22513615]
[1747321453249,0.47774581,102170.0,102160.0,0.48101797]
[1747321453458,0.48675888,102170.0,102160.0,0.26566981]
[1747321453681,0.47632913,102170.0,102160.0,0.2226]
[1747321453880,0.47632913,102170.0,102160.0,0.41837133]
[1747321454121,0.47632913,102170.0,102160.0,0.43794836]
[1747321454534,0.47632913,102170.0,102160.0,0.44773663]
[1747321455361,0.47732913,102170.0,102160.0,0.43794836]
[1747321455560,0.47932913,102170.0,102160.0,0.2226]
[1747321455680,0.46954153,102170.0,102160.0,0.2226]
[1747321455891,0.46954153,102170.0,102160.0,0.50791278]
[1747321456093,0.46954153,102170.0,102160.0,0.51770125]
[1747321456495,0.46954153,102170.0,102160.0,0.30235289]
[1747321456885,0.56685093,102170.0,102160.0,0.2226]
[1747321457052,0.2462598,102160.0,102150.0,0.20557983]
[1747321457320,0.2462598,102160.0,102150.0,0.42817983]
[1747321457527,0.4685798,102160.0,102150.0,0.2226]
[1747321457931,0.47772478,102160.0,102150.0,0.2226]
[1747321458500,0.25540478,102160.0,102150.0,0.2226]
[1747321458705,0.47768478,102160.0,102150.0,0.2226]
[1747321459304,0.4673342,102160.0,102150.0,0.2226]
[1747321459467,0.4673342,102160.0,102150.0,0.26835362]
[1747321459674,0.4672942,102160.0,102150.0,0.26835362]
[1747321459886,0.46488151,102160.0,102150.0,0.26835362]
[1747321460313,0.46788151,102160.0,102150.0,0.26835362]
[1747321460515,0.4714998,102160.0,102150.0,0.26835362]
[1747321460941,0.4714998,102160.0,102150.0,0.2226]
[1747321461261,0.47101736,102160.0,102150.0,0.2226]
[1747321461684,0.47101736,102160.0,102150.0,0.4183905]
[1747321461910,0.47101736,102160.0,102150.0,0.42818002]
[1747321462158,0.47101736,102160.0,102150.0,0.2226]
[1747321462368,0.21536925,102150.0,102140.0,0.21535663]
[1747321462577,0.21536925,102150.0,102140.0,0.54505613]
[1747321462784,0.21536925,102150.0,102140.0,0.55484613]
[1747321462912,0.23494743,102150.0,102140.0,0.56463603]
[1747321463116,0.23494743,102150.0,102140.0,0.56463536]
[1747321463585,0.03915693,102150.0,102140.0,0.56463536]
[1747321464735,0.03915693,102150.0,102140.0,0.55484555]
[1747321464944,0.22515839,102150.0,102140.0,0.54505632]
[1747321465141,0.22515839,102150.0,102140.0,0.55484613]
[1747321465351,0.22515839,102150.0,102140.0,0.54505632]
[1747321465510,0.22515839,102150.0,102140.0,0.55484632]
[1747321466032,0.23647133,102160.0,102150.0,0.20557983]
[1747321466193,0.44725615,102160.0,102150.0,0.23249848]
[1747321466652,0.43746816,102160.0,102150.0,0.22270925]
[1747321466871,0.43746816,102160.0,102150.0,0.23249839]
[1747321467106,0.01957569,102160.0,102150.0,0.24228724]
[1747321467251,0.45700366,102160.0,102150.0,0.23249839]
[1747321467453,0.44721596,102160.0,102150.0,0.23249848]
[1747321467672,0.44721596,102160.0,102150.0,0.24228762]
[1747321467872,0.25144463,102160.0,102150.0,0.24228762]
[1747321468069,0.45700452,102160.0,102150.0,0.24228762]
[1747321468247,0.45800452,102160.0,102150.0,0.24228762]
[1747321468449,0.45017653,102160.0,102150.0,0.24228762]
[1747321468658,0.45017653,102160.0,102150.0,0.23249848]
[1747321468839,0.20557983,102150.0,102140.0,0.90475613]
[1747321469045,0.23494743,102150.0,102140.0,0.99215543]
[1747321469282,0.23494743,102150.0,102140.0,0.65215543]
[1747321469283,0.04894578,102150.0,102140.0,0.65215543]
[1747321469456,0.23739482,102150.0,102140.0,0.3199094]
[1747321469682,0.25366925,102150.0,102140.0,0.3199094]
[1747321469888,0.25366925,102150.0,102140.0,0.2226]
[1747321470087,0.25366925,102150.0,102140.0,0.41840967]
[1747321470340,0.21536925,102150.0,102140.0,0.42820005]
[1747321470741,0.21536925,102150.0,102140.0,0.2226]
[1747321470961,0.22577992,102150.0,102140.0,0.2226]
[1747321471160,0.22577992,102150.0,102140.0,0.41840967]
[1747321471378,0.22577992,102150.0,102140.0,0.42820015]
[1747321471521,0.22577992,102150.0,102140.0,0.52550955]
[1747321471927,0.20557992,102150.0,102140.0,0.42820015]
[1747321472313,0.20557992,102150.0,102140.0,0.43799044]
[1747321472717,0.20557992,102150.0,102140.0,0.42820015]
[1747321473744,0.20557992,102150.0,102140.0,0.43799034]
[1747321473745,0.21536906,102150.0,102140.0,0.43799034]
[1747321473963,0.20557992,102150.0,102140.0,0.42820015]
[1747321474140,0.20557992,102150.0,102140.0,0.43799053]
[1747321474726,0.2341905,102150.0,102140.0,0.2226]
[1747321474903,0.21539015,102140.0,102130.0,0.62842018]
[1747321475123,0.24150048,102140.0,102130.0,0.86988219]
[1747321475260,0.24150048,102140.0,102130.0,0.87967296]
[1747321475663,0.23170962,102140.0,102130.0,1.26350298]
[1747321475868,0.53577133,102160.0,102150.0,0.20557983]
[1747321476066,0.53577133,102160.0,102150.0,0.22188]
[1747321476276,0.75765133,102160.0,102150.0,0.22188]
[1747321478119,0.76065133,102160.0,102150.0,0.22188]
[1747321478735,0.76065133,102160.0,102150.0,0.4176705]
[1747321478957,0.76065133,102160.0,102150.0,0.42746002]
[1747321479142,0.76065133,102160.0,102150.0,0.4927239]
[1747321479309,0.76065133,102160.0,102150.0,0.23166952]
[1747321479510,0.53877133,102160.0,102150.0,0.43724944]
[1747321479705,0.76057133,102160.0,102150.0,0.44703877]
[1747321479920,0.76057133,102160.0,102150.0,0.22188]
[1747321480126,0.76053133,102160.0,102150.0,0.22188]
[1747321481989,0.76053133,102160.0,102150.0,0.26560702]
[1747321484083,0.76053133,102160.0,102150.0,0.22188]
[1747321485129,0.42053133,102160.0,102150.0,0.4176705]
[1747321485326,0.42053133,102160.0,102150.0,0.22188]
[1747321485531,0.42053133,102160.0,102150.0,0.4176705]
[1747321485667,0.44010836,102160.0,102150.0,0.43724887]
[1747321485873,0.22813654,102160.0,102150.0,0.52476923]
[1747321486078,0.22813654,102160.0,102150.0,0.57413626]
[1747321486288,0.25396444,102160.0,102150.0,0.59363626]
[1747321486504,0.45952424,102160.0,102150.0,0.59363626]
[1747321486889,0.45952424,102160.0,102150.0,0.37175626]
[1747321487111,0.24417607,102160.0,102150.0,0.93876628]
[1747321487429,0.02257597,102160.0,102150.0,0.69094566]
[1747321487603,0.03236424,102160.0,102150.0,0.69094566]
[1747321487819,0.25392424,102160.0,102150.0,0.69094566]
[1747321488015,0.45948404,102160.0,102150.0,0.69094566]
[1747321488219,0.4692726,102160.0,102150.0,0.69094585]
[1747321488384,0.4692726,102160.0,102150.0,0.60341662]
[1747321488573,0.25392424,102160.0,102150.0,0.61320547]
[1747321488778,0.26371261,102160.0,102150.0,0.61320547]
[1747321489783,0.26371319,102160.0,102150.0,0.61320547]
[1747321490093,0.25392472,102160.0,102150.0,0.61320547]
[1747321490546,0.24413635,102160.0,102150.0,0.61320547]
[1747321492282,0.25392472,102160.0,102150.0,0.61320547]
[1747321492460,0.24413635,102160.0,102150.0,0.61320547]
[1747321492657,0.25392472,102160.0,102150.0,0.61320547]
[1747321492875,0.26371262,102160.0,102150.0,0.61320547]
[1747321493041,0.45948385,102160.0,102150.0,0.61320547]
[1747321493242,0.26371252,102160.0,102150.0,0.61320547]
[1747321493622,0.24413588,102160.0,102150.0,0.61320547]
[1747321493959,0.26371252,102160.0,102150.0,0.61320547]
[1747321494175,0.25392415,102160.0,102150.0,0.61320547]
[1747321494738,0.26371252,102160.0,102150.0,0.61320547]
[1747321495181,0.25392415,102160.0,102150.0,0.61320547]
[1747321495965,0.2343478,102160.0,102150.0,0.61320547]
[1747321496189,0.02257569,102160.0,102150.0,0.95833549]
[1747321496408,0.0127877,102160.0,102150.0,1.05564489]
[1747321496827,0.02257559,102160.0,102150.0,1.05564489]
[1747321497036,0.03236358,102160.0,102150.0,1.05564489]
[1747321497497,0.02257559,102160.0,102150.0,1.05564489]
[1747321498449,0.02257559,102160.0,102150.0,1.04586472]
[1747321498882,0.04215214,102160.0,102150.0,0.7007347]
[1747321499096,0.02257559,102160.0,102150.0,1.1235747]
[1747321499310,0.0127877,102160.0,102150.0,1.1235747]
[1747321499523,0.21834778,102160.0,102150.0,0.8405105]
[1747321499751,0.21834778,102160.0,102150.0,0.64472]
[1747321500002,0.23724778,102160.0,102150.0,0.64472]
[1747321500436,0.25704778,102160.0,102150.0,0.42284]
[1747321500653,0.36350189,102160.0,102150.0,0.42284]
[1747321500861,0.66272185,102160.0,102150.0,0.42284]
[1747321501031,0.58466189,102160.0,102150.0,0.42284]
[1747321501983,0.03916402,102130.0,102120.0,1.16246251]
[1747321502192,0.46590411,102130.0,102120.0,1.40392624]
[1747321502393,0.45611354,102130.0,102120.0,1.35613452]
[1747321502599,0.23091057,102130.0,102120.0,1.50173564]
[1747321502821,0.25044732,102150.0,102140.0,0.22517967]
[1747321503030,0.00914471,102150.0,102140.0,0.83068969]
[1747321503230,0.23040904,102150.0,102140.0,0.92799909]
[1747321504385,0.00114433,102150.0,102140.0,0.92799909]
[1747321504592,0.00114433,102150.0,102140.0,1.02530849]
[1747321505402,0.00314433,102150.0,102140.0,1.02530849]
[1747321505602,0.02272194,102150.0,102140.0,1.02530849]
[1747321505770,0.01293318,102150.0,102140.0,1.43460849]
[1747321505970,0.00314433,102150.0,102140.0,1.43460849]
[1747321506792,0.00314433,102150.0,102140.0,1.08947847]
[1747321507035,0.01293308,102150.0,102140.0,1.43460849]
[1747321507237,0.00314433,102150.0,102140.0,1.43460849]
[1747321508331,0.01293299,102150.0,102140.0,1.43460849]
[1747321508479,0.00314433,102150.0,102140.0,1.43460849]
[1747321509475,0.01293308,102150.0,102140.0,1.43460849]
[1747321509751,0.01293299,102150.0,102140.0,1.43460849]
[1747321510130,0.00314433,102150.0,102140.0,1.43460849]
[1747321510904,0.01293299,102150.0,102140.0,1.43460849]
[1747321511105,0.00314433,102150.0,102140.0,1.43460849]
[1747321511731,0.00314433,102150.0,102140.0,1.85744849]
[1747321512292,0.03251078,102150.0,102140.0,1.85744849]
[1747321512441,0.03251069,102150.0,102140.0,1.85748849]
[1747321512668,0.04229973,102150.0,102140.0,1.51235847]
[1747321512854,0.05208896,102150.0,102140.0,1.51235847]
[1747321513034,0.2185132,102150.0,102140.0,1.05406]
[1747321513237,0.2185132,102150.0,102140.0,0.83218]
[1747321513468,0.2185132,102150.0,102140.0,1.05318]
[1747321514023,0.2382132,102150.0,102140.0,0.83218]
[1747321514197,0.2382132,102150.0,102140.0,1.05318]
[1747321514430,0.2577132,102150.0,102140.0,0.83218]
[1747321514633,0.3550226,102150.0,102140.0,0.83218]
[1747321515765,0.3550226,102150.0,102140.0,0.40934]
[1747321517169,0.3550226,102150.0,102140.0,4e-05]
[1747321517170,5.76956345,102150.0,102140.0,4e-05]
[1747321517401,0.21545324,102110.0,102100.0,0.221]
[1747321517600,0.23506191,102100.0,102090.0,0.32172858]
[1747321517798,0.23506191,102100.0,102090.0,0.64003798]
[1747321518008,0.03917553,102100.0,102090.0,0.64983258]
[1747321518209,0.21547472,102100.0,102090.0,0.08672291]
[1747321518411,0.21547472,102100.0,102090.0,0.51342356]
[1747321518611,0.21547472,102100.0,102090.0,0.63032265]
[1747321518812,0.2252676,102100.0,102090.0,0.62100916]
[1747321519018,0.23506182,102100.0,102090.0,0.63080405]
[1747321519475,0.23506182,102100.0,102090.0,0.54328935]
[1747321519713,0.23506182,102100.0,102090.0,0.50410969]
[1747321519917,0.21547463,102100.0,102090.0,0.30820412]
[1747321520089,0.19588638,102100.0,102090.0,0.30820412]
[1747321520325,0.19588638,102100.0,102090.0,0.51390496]
[1747321520767,0.19588638,102100.0,102090.0,0.30820412]
[1747321521589,0.19588638,102100.0,102090.0,0.50410969]
[1747321521723,0.42624069,102100.0,102090.0,0.60953244]
[1747321521922,0.20568069,102100.0,102090.0,0.30820412]
[1747321522118,0.42624069,102100.0,102090.0,0.30820412]
[1747321522575,0.42624069,102100.0,102090.0,0.22148121]
[1747321522811,0.42624069,102100.0,102090.0,0.42718205]
[1747321522975,0.42624069,102100.0,102090.0,0.22148121]
[1747321523908,0.42624069,102100.0,102090.0,0.42718205]
[1747321524113,0.42624069,102100.0,102090.0,0.22148121]
[1747321524726,0.42624069,102100.0,102090.0,0.41738678]
[1747321524947,0.42624069,102100.0,102090.0,0.22148121]
[1747321525710,0.42624069,102100.0,102090.0,0.22152121]
[1747321526242,0.43703395,102100.0,102090.0,0.43701685]
[1747321526446,0.21647433,102100.0,102090.0,0.42722196]
[1747321526678,0.41732638,102100.0,102090.0,0.22152121]
[1747321527312,0.21647376,102100.0,102090.0,0.22581145]
[1747321527509,0.26061553,102100.0,102090.0,0.45668624]
[1747321527733,0.46629689,102100.0,102090.0,0.46559164]
[1747321527950,0.45650306,102100.0,102090.0,0.46559164]
[1747321528313,0.43691491,102100.0,102090.0,0.22160121]
[1747321528515,0.43791491,102100.0,102090.0,0.00052121]
[1747321528684,0.43791491,102100.0,102090.0,0.22160121]
[1747321528886,0.43791491,102100.0,102090.0,0.41750678]
[1747321529092,0.43791491,102100.0,102090.0,0.42730205]
[1747321529517,0.43791491,102100.0,102090.0,0.52461145]
[1747321529736,0.43791491,102100.0,102090.0,0.53440663]
[1747321529962,0.22244,102100.0,102090.0,0.5539965]
[1747321530092,0.01179364,102100.0,102090.0,0.94782112]
[1747321530297,0.02158738,102100.0,102090.0,0.94782112]
[1747321530570,0.45742171,102100.0,102090.0,0.94782112]
[1747321530694,0.26153533,102100.0,102090.0,0.94782112]
[1747321531111,0.27132955,102100.0,102090.0,0.6026911]
[1747321531811,0.25174121,102100.0,102090.0,0.6026911]
[1747321532054,0.27132955,102100.0,102090.0,0.6026911]
[1747321532257,0.46721593,102100.0,102090.0,0.6026911]
[1747321532470,0.4672166,102100.0,102090.0,0.5928965]
[1747321532607,0.45742286,102100.0,102090.0,0.5928965]
[1747321533056,0.45742286,102100.0,102090.0,0.6026912]
[1747321534018,0.44762903,102100.0,102090.0,0.58310171]
[1747321534225,0.44762903,102100.0,102090.0,0.5928967]
[1747321534450,0.43783491,102100.0,102090.0,0.57330663]
[1747321534657,0.42804069,102100.0,102090.0,0.31891061]
[1747321534873,0.41824638,102100.0,102090.0,0.32870588]
[1747321535408,0.41824638,102100.0,102090.0,0.30353145]
[1747321535646,0.4280406,102100.0,102090.0,0.56260171]
[1747321535817,0.4280406,102100.0,102090.0,0.55280663]
[1747321536994,0.41824638,102100.0,102090.0,0.55280663]
[1747321537455,0.41824638,102100.0,102090.0,0.33731061]
[1747321537657,0.41824638,102100.0,102090.0,0.53321618]
[1747321538592,0.41824638,102100.0,102090.0,0.24000121]
[1747321538795,0.41824638,102100.0,102090.0,0.22160121]
[1747321539115,0.41824638,102100.0,102090.0,0.22064121]
[1747321539541,0.41824638,102100.0,102090.0,0.44544205]
[1747321540173,0.41824638,102100.0,102090.0,0.13974121]
[1747321540406,0.41824638,102100.0,102090.0,0.12064121]
[1747321541577,0.41824638,102100.0,102090.0,0.31654678]
[1747321541779,0.002,102100.0,102090.0,0.38333145]
[1747321541990,0.002,102100.0,102090.0,0.82577087]
[1747321542325,0.002,102100.0,102090.0,1.93474174]
[1747321542549,0.002,102100.0,102090.0,2.03205114]
[1747321542755,0.22,102130.0,102120.0,0.26272405]
[1747321542980,0.00979077,102130.0,102120.0,1.34836347]
[1747321543183,0.01958173,102130.0,102120.0,1.34836347]
[1747321544127,0.21541057,102130.0,102120.0,0.61892802]
[1747321544327,0.21741105,102130.0,102120.0,0.93419661]
[1747321544633,0.21741105,102130.0,102120.0,0.95378064]
[1747321544866,0.01179067,102130.0,102120.0,1.00027236]
[1747321545032,0.002,102130.0,102120.0,1.44271178]
[1747321545512,0.002,102130.0,102120.0,1.45235997]
[1747321545690,0.004,102130.0,102120.0,1.45235997]
[1747321545904,0.01379077,102130.0,102120.0,1.45235997]
[1747321546108,0.004,102130.0,102120.0,1.45235997]
[1747321546753,0.004,102130.0,102120.0,2.13748999]
[1747321547160,0.004,102130.0,102120.0,1.79235997]
[1747321547402,0.004,102130.0,102120.0,2.13748999]
[1747321547627,0.002,102130.0,102120.0,2.13748999]
[1747321548071,0.002,102130.0,102120.0,1.79235997]
[1747321549126,0.0391601,102140.0,102130.0,0.225202]
[1747321549335,0.2588801,102140.0,102130.0,0.24501659]
[1747321549639,0.24908981,102140.0,102130.0,0.24501659]
[1747321549900,0.00978971,102140.0,102130.0,0.46509659]
[1747321550104,0.0293699,102140.0,102130.0,0.50419659]
[1747321550305,0.0298514,102140.0,102130.0,0.50419659]
[1747321550424,0.0308514,102140.0,102130.0,0.50419659]
[1747321550637,0.04064169,102140.0,102130.0,0.50419659]
[1747321551152,0.01127121,102140.0,102130.0,0.50419659]
[1747321551411,0.02106111,102140.0,102130.0,0.50419659]
[1747321551544,0.0308513,102140.0,102130.0,0.50419659]
[1747321551938,0.26028159,102140.0,102130.0,0.50419659]
[1747321552593,0.2504913,102140.0,102130.0,0.50419659]
[1747321552804,0.27007197,102140.0,102130.0,0.50419659]
[1747321553057,0.26028159,102140.0,102130.0,0.50419659]
[1747321553275,0.2504913,102140.0,102130.0,0.50419659]
[1747321553691,0.45609145,102140.0,102130.0,0.48429659]
[1747321553913,0.2504913,102140.0,102130.0,0.48429659]
[1747321554117,0.2504913,102140.0,102130.0,0.50299659]
[1747321554306,0.45609126,102140.0,102130.0,0.50299659]
[1747321554531,0.27007197,102140.0,102130.0,0.50299659]
[1747321554736,0.26028159,102140.0,102130.0,0.50299659]
[1747321557155,0.23499286,102130.0,102120.0,1.08481252]
[1747321557356,0.21541143,102130.0,102120.0,0.42308]
[1747321557556,0.21541143,102130.0,102120.0,0.83896802]
[1747321557762,0.21541143,102130.0,102120.0,0.84876042]
[1747321558226,0.42672165,102140.0,102130.0,0.19582884]
[1747321558432,0.42572165,102140.0,102130.0,0.20562028]
[1747321558643,0.2198815,102140.0,102130.0,0.69693286]
[1747321558839,0.24925121,102140.0,102130.0,0.71643286]
[1747321559054,0.2590415,102140.0,102130.0,0.71643286]
[1747321559204,0.2590415,102140.0,102130.0,0.37130284]
[1747321559386,0.0014815,102140.0,102130.0,0.71643286]
[1747321559586,0.23067121,102140.0,102130.0,0.71643286]
[1747321560008,0.2208815,102140.0,102130.0,0.71643286]
[1747321560210,0.0024815,102140.0,102130.0,0.81374226]
[1747321560630,0.01227131,102140.0,102130.0,0.81374226]
[1747321561247,0.0024815,102140.0,102130.0,0.81374226]
[1747321561446,0.01227121,102140.0,102130.0,0.46861224]
[1747321561654,0.01227121,102140.0,102130.0,0.81374226]
[1747321561885,0.02206111,102140.0,102130.0,0.81374226]
[1747321562223,0.0318513,102140.0,102130.0,0.46861224]
[1747321562474,0.0416415,102140.0,102130.0,0.71643286]
[1747321562683,0.22520229,102130.0,102120.0,1.09598961]
[1747321562900,0.02937345,102130.0,102120.0,1.28742143]
[1747321563104,0.21541124,102130.0,102120.0,0.42308]
[1747321563220,0.21541124,102130.0,102120.0,0.61892802]
[1747321563427,0.21541124,102130.0,102120.0,0.93799525]
[1747321563627,0.21541124,102130.0,102120.0,0.94778745]
[1747321564092,0.20562009,102130.0,102120.0,0.64312]
[1747321564296,0.20562009,102130.0,102120.0,0.85855262]
[1747321564505,0.20662009,102130.0,102120.0,0.85855262]
[1747321564722,0.20762009,102130.0,102120.0,0.85855262]
[1747321565341,0.20762009,102130.0,102120.0,0.64312]
[1747321565582,0.22692009,102130.0,102120.0,0.64312]
[1747321565754,0.24502009,102130.0,102120.0,0.64312]
[1747321566338,0.24502009,102130.0,102120.0,0.83896802]
[1747321566541,0.20762009,102130.0,102120.0,0.83896802]
[1747321566749,0.20762009,102130.0,102120.0,0.64312]
[1747321566750,0.19782884,102130.0,102120.0,0.64312]
[1747321567406,0.19782884,102130.0,102120.0,0.84876042]
[1747321567772,0.41698884,102130.0,102120.0,0.84876042]
[1747321567975,0.002,102130.0,102120.0,0.89743645]
[1747321568251,0.24074182,102130.0,102120.0,1.26076647]
[1747321568467,0.01179077,102130.0,102120.0,1.26076647]
[1747321568594,0.25049298,102130.0,102120.0,1.26076647]
[1747321568802,0.25049298,102130.0,102120.0,1.35807587]
[1747321569009,0.24070173,102130.0,102120.0,1.35807587]
[1747321569212,0.24070173,102130.0,102120.0,1.01294585]
[1747321569422,0.25049288,102130.0,102120.0,1.01294585]
[1747321569812,0.002,102130.0,102120.0,1.35807587]
[1747321570026,0.24066143,102130.0,102120.0,1.35807587]
[1747321570427,0.23087067,102130.0,102120.0,1.35807587]
[1747321570611,0.23087057,102130.0,102120.0,1.35807587]
[1747321570873,0.25045239,102130.0,102120.0,1.01294585]
[1747321571087,0.2504523,102130.0,102120.0,1.35807587]
[1747321571291,0.45607219,102130.0,102120.0,1.00315413]
[1747321571494,0.25045278,102130.0,102120.0,1.01294585]